Cogmind - Beta 13 @@@ ROGUE MODE // 2024.05.14 @ 18:35:47 Player: Millea Result: Destroyed by G-47 Trooper with Particle Gun Performance ------------- Evolutions (2) 1000 Regions Visited (3) 600 Robots Destroyed (48) 240 Value Destroyed (1463) 1463 Prototype IDs (6) 120 Alien Tech Used (0) 0 Bonus (0) 0 TOTAL SCORE: 3423 Bonus ------- None Cogmind --------- Core Integrity 0/550 Matter 63/300 Energy 45/100 System Corruption 0% Temperature Warm (138) Movement Core (50) Location -8/Materials Parts ------- > --- POWER (1) -------- (None) > --- PROPULSION (3) --- (None) > --- UTILITY (4) ------ (None) > --- WEAPON (3) ------- (None) > --- INVENTORY (5) ---- Medium Armor Plating Particle Cannon Light Cannon Rocket Launcher Heavy Missile Launcher Peak State ------------ > --- POWER ------------ Light Nuclear Core > --- PROPULSION ------- Light Treads Light Treads Light Treads > --- UTILITY ---------- Huge Storage Unit Weapon Cycler Weapon Cycler Medium Armor Plating > --- WEAPON ----------- Heavy Particle Cannon Heavy Particle Cannon Heavy Missile Launcher > --- INVENTORY -------- Light Treads Medium Armor Plating Medium Armor Plating Medium Armor Plating Authchip [Armor] High-powered Tractor Beam Particle Cannon Light Cannon Light Cannon Light Cannon Light Cannon Light Cannon Rocket Launcher Heavy Missile Launcher Heavy Missile Launcher Heavy Missile Launcher [Rating: 30] Favorites ----------- Power Ion Engine Engine Ion Engine Power Core Light Nuclear Core Propulsion Light Treads Treads Light Treads Utility Large Storage Unit Device Weapon Cycler Storage Large Storage Unit Protection Medium Armor Plating Weapon Light Cannon Energy Cannon Heavy Particle Cannon Ballistic Gun Assault Rifle Ballistic Cannon Light Cannon Launcher Heavy Missile Launcher Build | -11 -10 -9 -8 ------- Run | Yrd Mat Mat Mat Slots Evolved 4 | . . 2 2 Power . | . . . . Propulsion 1 | . . 1 . Utility 2 | . . 1 1 Weapon 1 | . . . 1 Parts Attached 38 | 7 6 6 19 Power 3 | 1 . 1 1 Engine 2 | 1 . 1 . Core 1 | . . . 1 Reactor . | . . . . Propulsion 8 | 2 . 2 4 Treads 8 | 2 . 2 4 Leg . | . . . . Wheel . | . . . . Hover . | . . . . Flight . | . . . . Utility 11 | 2 3 1 5 Device 6 | 1 2 . 3 Storage 3 | 1 1 . 1 Processor . | . . . . Hackware . | . . . . Protection 2 | . . 1 1 Artifact . | . . . . Weapon 16 | 2 3 2 9 Energy Gun . | . . . . Energy Cannon 4 | . . 1 3 Ballistic Gun 3 | 2 . . 1 Ballistic Cannon 8 | . 3 1 4 Launcher 1 | . . . 1 Special Weapon . | . . . . Impact Weapon . | . . . . Slashing Weapon . | . . . . Piercing Weapon . | . . . . Special Melee Weapon . | . . . . Unidentified Prototypes . | . . . . Parts Lost 11 | . . 1 10 Power 2 | . . 1 1 Propulsion 4 | . . . 4 Utility 3 | . . . 3 Weapon 2 | . . . 2 Highest Loss Streak 9 | . . 1 9 To Critical Strikes . | . . . . Average Slot Usage (%) 95 | . 99 89 94 Engine 8 | . 14 11 1 Core 2 | . . . 6 Treads 26 | . 28 25 25 Device 14 | . 14 11 17 Storage 11 | . 14 11 8 Protection 5 | . . 9 8 Energy Cannon 5 | . . 1 13 Ballistic Cannon 19 | . 27 19 10 Naked Turns 8 | . . . 8 Heaviest Build 113 | 14 32 40 113 Greatest Support 60 | 40 40 60 60 Greatest Overweight (x) 1 | . . . 1 Average Overweight (x) . | . . . . Largest Inventory Capacity 25 | 8 15 15 25 Average Capacity 16 | 7 14 15 21 Most Carried 17 | 6 15 15 17 Average Carried 13 | 3 13 14 15 Final Capacity 15 | 8 15 15 5 Final Carried 15 | 6 15 15 5 Class Distribution -------------------- 67% | Mutant 24% | Scavenger-Gunner 5% | Gunner Dominant Class ---------------- Mutant | -10/Materials Mutant | -9/Materials Scavenger-Gunner | -8/Materials Resources | -11 -10 -9 -8 ----------- Run | Yrd Mat Mat Mat Matter Collected 1225 | 197 257 370 401 Remotely 150 | . 91 . 59 Salvage Created 1436 | 24 253 366 793 Parts 95 | 1 21 21 52 Haulers Intercepted 2 | . 1 . 1 Recyclers Shooed 2 | . 2 . . Parts Field Recycled . | . . . . Retrieved Matter . | . . . . Parts Self-Destructed . | . . . . Prevented . | . . . . Kills | -11 -10 -9 -8 ------- Run | Yrd Mat Mat Mat Combat Hostiles Destroyed 34 | . 8 8 18 Cannons 29 | . 8 8 13 AOE 5 | . . . 5 Classes Destroyed 12 | 1 6 3 2 Worker 3 | . 1 . 2 Builder 2 | . . . 2 Tunneler 1 | 1 . . . Hauler 2 | . 1 . 1 Recycler 4 | . 1 2 1 Operator 1 | . 1 . . Watcher 1 | . . 1 . Swarmer 3 | . 3 . . Grunt 25 | . 5 6 14 Duelist 1 | . . 1 . Sentry 4 | . . 1 3 Hunter 1 | . . . 1 Best Kill Streak 7 | 1 3 4 7 Combat Bots Only 5 | . 3 3 5 Max Kills in Single Turn 3 | 1 2 1 3 Gunslinging . | . . . . Exploded 2 | . . . 2 Melee . | . . . . Uniques/NPCs Destroyed . | . . . . Combat | -11 -10 -9 -8 -------- Run | Yrd Mat Mat Mat Hostile Shots Fired 208 | . 31 26 151 Missed 43 | . 7 11 25 Damage Taken 2526 | . 240 207 2079 Core 592 | . 27 12 553 Absorbed by Shields . | . . . . Regen/Repaired (Parts) 83 | . . 83 . Core Remaining (%) 95 | 100 89 97 . Volleys Fired 139 | 4 35 25 75 Largest 3 | 2 2 2 3 Hottest 185 | 40 70 103 185 Shots Fired 269 | 8 70 50 141 Gun 20 | 8 . . 12 Cannon 241 | . 70 50 121 Launcher 8 | . . . 8 Special . | . . . . Kinetic 218 | 8 70 47 93 Thermal 43 | . . 3 40 Explosive 8 | . . . 8 Electromagnetic . | . . . . Robot Hit Streak 20 | 2 7 8 20 Robot Miss Streak 5 | 2 4 3 5 Penetration Max . | . . . . Secondary Targets . | . . . . Shots Hit Robots 165 | 4 41 33 87 Core Hits 69 | 1 12 14 42 Critical Kills . | . . . . Critical Parts Destroyed . | . . . . Critical Strikes 7 | . 1 2 4 Blast 7 | . 1 2 4 Melee Attacks . | . . . . Impact . | . . . . Slashing . | . . . . Piercing . | . . . . Sneak Attacks . | . . . . Combat Hostiles . | . . . . Follow-up Attacks . | . . . . Damage Inflicted 3996 | 49 761 605 2581 Guns 204 | 49 . . 155 Cannons 3038 | . 761 605 1672 Explosions 725 | . . . 725 Melee . | . . . . Ramming 29 | . . . 29 Kinetic 2542 | 49 761 605 1127 Thermal 700 | . . . 700 Explosive 725 | . . . 725 Electromagnetic . | . . . . Impact . | . . . . Slashing . | . . . . Piercing . | . . . . Highest Corruption 1 | . 1 . . Average Corruption 1 | . 1 . . Corruption Purged . | . . . . Corruption Blocked . | . . . . Effects 2 | . 2 . . Message Errors 1 | . 1 . . Parts Rejected 1 | . 1 . . Overload Shots . | . . . . Overflow Damage 83 | . 7 . 76 Projectiles 14 | . 7 . 7 Explosions 69 | . . . 69 Melee . | . . . . Knockbacks 40 | . 17 10 13 Impact . | . . . . Kinetic 33 | . 14 8 11 Secondary 7 | . 3 2 2 Self-Inflicted Damage 47 | . . . 47 Shots 1 | . . . 1 Rammed 9 | . . . 9 Targets Rammed 9 | . . . 9 Kicked . | . . . . Crushed . | . . . . Highest Temperature 421 | . 120 138 421 Average Temperature 123 | . 32 34 187 Received Heat Transfer 1470 | . 96 87 1287 Effects 3 | . . . 3 Energy Bleed 2 | . . . 2 Damage (minor) 1 | . . . 1 Siege Activations . | . . . . Robots Corrupted . | . . . . Combat Hostiles . | . . . . Parts Fried . | . . . . Impact Corruptions . | . . . . Robots Melted . | . . . . Combat Hostiles . | . . . . Parts Melted 1 | . . . 1 Heat Transferred 1073 | . . . 1073 Parts Sabotaged . | . . . . Parts Stolen . | . . . . Parts Stripped . | . . . . Power Chain Reactions . | . . . . Alert | -11 -10 -9 -8 ------- Run | Yrd Mat Mat Mat Peak Influence 307 | 5 155 307 298 Initial 65 | . 3 65 . Average 122 | . 59 175 176 Maximum Alert Level 1 | . . 1 1 Low Security (%) 80 | 100 100 72 61 Level 1 19 | . . 27 38 Level 2 . | . . . . Level 3 . | . . . . Level 4 . | . . . . Level 5 . | . . . . High Security . | . . . . Max Security . | . . . . Squads Dispatched 9 | . 3 2 4 Investigation 4 | . 2 1 1 Extermination . | . . . . Reinforcement 5 | . 1 1 3 Assault . | . . . . Garrison . | . . . . Intercept . | . . . . Searches Triggered . | . . . . Construction Impeded 1 | . . . 1 Haulers Reinforced . | . . . . Active Scanning Responses . | . . . . Cargo Convoy Interrupts . | . . . . Stealth | -11 -10 -9 -8 --------- Run | Yrd Mat Mat Mat Distress Signals 4 | . . 1 3 Communications Jammed . | . . . . Distress Signals . | . . . . Times Spotted 49 | . 9 9 31 Peak Tracking Total 7 | . 4 3 7 Tactical Retreats . | . . . . Traps | -11 -10 -9 -8 ------- Run | Yrd Mat Mat Mat Traps Triggered 4 | . 3 1 . Indirectly . | . . . . Trap Hack Attempts . | . . . . Triggered . | . . . . Disarmed . | . . . . Reprogrammed . | . . . . Reused . | . . . . Traps Extracted . | . . . . Installed . | . . . . Triggered . | . . . . Machines | -11 -10 -9 -8 ---------- Run | Yrd Mat Mat Mat Machines Disabled 2 | . 1 . 1 Max in Single Turn 1 | . 1 . 1 Machines Repaired . | . . . . Machines Dismantled . | . . . . Machines Sabotaged . | . . . . Overloaded Fab Kills . | . . . . Hacking | -11 -10 -9 -8 --------- Run | Yrd Mat Mat Mat Machines Accessed 14 | . 5 5 4 Terminals 13 | . 5 4 4 Fabricators . | . . . . Repair Stations 1 | . . 1 . Recycling Units . | . . . . Scanalyzers . | . . . . Garrison Access . | . . . . Total Hacks 31 | . 11 11 9 Successful 15 | . 3 5 7 Failed 16 | . 8 6 2 Catastrophic 2 | . . 1 1 Database Lockouts . | . . . . Manual 21 | . 12 6 3 Terminals 28 | . 11 8 9 Fabricators . | . . . . Repair Stations 3 | . . 3 . Recycling Units . | . . . . Scanalyzers . | . . . . Garrison Access . | . . . . Terminal Hacks 12 | . 3 3 6 Robot Analysis 4 | . 2 1 1 Prototype ID Bank 4 | . 1 1 2 Terminal Index 1 | . . . 1 Unreport Threat 1 | . . 1 . Dispatch Records 1 | . . . 1 Reinforcement Status 1 | . . . 1 Fabricator Hacks . | . . . . Repair Station Hacks 2 | . . 2 . Scan Component 1 | . . 1 . Repair 1 | . . 1 . Recycling Unit Hacks . | . . . . Scanalyzer . | . . . . Garrison Access Hacks . | . . . . Unauthorized Hacks 1 | . . . 1 Terminals 1 | . . . 1 Botnet 1 | . . . 1 Fabricators . | . . . . Repair Stations . | . . . . Recycling Units . | . . . . Scanalyzers . | . . . . Garrison Access . | . . . . Data Cores Recovered . | . . . . Used . | . . . . Hacking Detections 14 | . 5 5 4 Full Trace Events 2 | . . 1 1 Feedback Events . | . . . . Feedback Blocked . | . . . . Robot Schematics Acquired . | . . . . Robots Built . | . . . . Authchips . | . . . . Time . | . . . . Total Robot Build Rating . | . . . . Part Schematics Acquired . | . . . . Parts Built . | . . . . Authchips . | . . . . Time . | . . . . Total Part Build Rating . | . . . . Parts Repaired 1 | . . 1 . Time 26 | . . 26 . Parts Recycled . | . . . . Recycled Matter . | . . . . Retrieved Matter . | . . . . Retrieved Components . | . . . . Parts Scanalyzed . | . . . . Part Schematics Acquired . | . . . . Parts Damaged . | . . . . Bothacking | -11 -10 -9 -8 ------------ Run | Yrd Mat Mat Mat Used RIF Installer . | . . . . Robots Hacked . | . . . . Non-combat . | . . . . Combat . | . . . . Robot Hacks Applied . | . . . . Relay Couplers Released . | . . . . Fabnet Peak Effective % . | . . . . Robots Rewired . | . . . . Allies Hacked . | . . . . Hacks Repelled . | . . . . Allies | -11 -10 -9 -8 -------- Run | Yrd Mat Mat Mat Total Allies . | . . . . Largest Group . | . . . . Highest-Rated Group . | . . . . Highest-Rated Ally . | . . . . Total Orders . | . . . . Ally Attacks . | . . . . Total Damage . | . . . . Kills . | . . . . Allies Corrupted . | . . . . Allies Melted . | . . . . Intel | -11 -10 -9 -8 ------- Run | Yrd Mat Mat Mat Robot Analysis Total 4 | . 2 1 1 Derelict Logs Recovered . | . . . . Drone Launches . | . . . . Drone Recoveries . | . . . . Exploration | -11 -10 -9 -8 ------------- Run | Yrd Mat Mat Mat Turns Passed 1846 | 113 683 404 646 Spaces Moved 772 | 57 333 180 202 Core 14 | 4 . . 10 Treads 758 | 53 333 180 192 Legs . | . . . . Wheels . | . . . . Hover . | . . . . Flight . | . . . . Fastest Speed 50 | 50 160 160 50 Average Speed 169 | 152 160 160 199 Slowest Speed 240 | 160 160 160 240 Overloaded Moves . | . . . . Propulsion Burnouts . | . . . . Robots Hopped . | . . . . Cave-ins Triggered . | . . . . Exploration Rate (%) 26 | 5 51 27 22 Regions Visited 3 Branch Regions . Pre-discovered Areas . | . . . . Known Exits Taken . | . . . . Unknown Exits Taken 3 | 1 1 1 . Scrap Searched . | . . . . Spaces Dug . | . . . . Terrain Destroyed 94 | . . . 94 Melee . | . . . . Projectile 8 | . . . 8 AOE 86 | . . . 86 Terrain Rammed . | . . . . Walls Destroyed . | . . . . Machines Disabled . | . . . . Actions | -11 -10 -9 -8 --------- Run | Yrd Mat Mat Mat Total 1105 | 73 419 246 367 Wait 82 | . 8 28 46 Move 769 | 56 332 179 202 Hop . | . . . . Pick Up 37 | 6 21 4 6 Fast Attach 18 | 7 3 5 3 Attach 6 | . . 1 5 Detach 2 | . 2 . . Swap 14 | . 3 . 11 Drop 29 | . 15 4 10 Fire 139 | 4 35 25 75 Melee . | . . . . Ram 3 | . . . 3 Kick . | . . . . Crush 6 | . . . 6 Escape Stasis . | . . . . Rewire . | . . . . Trap . | . . . . Miscellaneous . | . . . . Route ------- -11/Scrapyard -10/Materials (discovered 3 exits: *Mat x2 / [*Min]) -9/Materials -8/Materials (discovered 1 exit: [*Sto]) History --------- Turn | Location | Event 7 | -11/Scrapyard | Discovered new exit (range 15) 114 | -11/Scrapyard | Entered Materials 315 | -10/Materials | Build established: Mutant 391 | -10/Materials | Discovered new exit (range 10) 496 | -10/Materials | Discovered new exit (range 14) 758 | -10/Materials | Discovered new exit (range 16) 797 | -10/Materials | Entered another Materials area 797 | -9/Materials | Evolved 2 slots: Propulsion x1, Utility x1 1016 | -9/Materials | Repaired Lgt. Cannon 1151 | -9/Materials | Discovered new exit (range 13) 1201 | -9/Materials | Entered another Materials area 1201 | -8/Materials | Evolved 2 slots: Utility x1, Weapon x1 1616 | -8/Materials | Build established: Scavenger-Gunner 1822 | -8/Materials | Core integrity fell below 50% 1839 | -8/Materials | Released all parts (5) 1840 | -8/Materials | Core integrity fell below 20% 1843 | -8/Materials | Discovered new exit (range 10) 1847 | -8/Materials | Destroyed by G-47 Trooper with Particle Gun Last Messages --------------- 01813_ Critical hit (Burn: +37). 01814_ U-05 Engineer lays Concrete. 01816_ Lgt. Treads destroyed. 01818_ M-28 Smith repairs G-50 Soldier. 01819_ Hpw. Tractor Beam destroyed. 01819_ Lgt. Cannon destroyed. 01822_ Adv. Heat Sink melted. 01822_ G-50 Soldier destroyed. 01822_ U-05 Engineer lays Concrete. 01827_ G-47 Trooper destroyed. 01831_ Critical hit (Burn: +37). 01839_ Released Hvy. Particle Cannon. 01839_ Released Enh. Autogun. 01839_ Released Huge Storage Unit. 01839_ Released Weapon Cycler. 01839_ Released Lgt. Cannon. 01839_ Slammed into G-47 Trooper. 01840_ Acquired 55 matter. 01840_ Slammed into G-47 Trooper. 01843_ EXIT=FOUND Map ----- +----------------------------------------------------+ | ?????????????????????????????????????????????# | | ?????????????????????????????????????????????# | | ????????????????????????? ???? ??????????? | | ????????????????????????? ??# ??????????? | | ????????????????????????? ??# ??????????? | | ????????????????????????# ??# ?????????# | | ???????????????????????? ??# ?????????? | | ???????????????###+###### #### ????#####? | | ??????????????? ???# ""#? | | ??????????? ??? ????#""S#? | | ???????????? ?? #######"" ## | | ????????????# """ """ ##! | | ????????????# """ """ ## /// | | ????????????# """ """ ##" // """ | | ???????????## """ """ "T" ##T // """ | | ???????????# """ ##" """ | | ???????????+ ## | | ???????????# g !^] #######+### | | ?????????????# #### g###=### ## | | ??????????????????# ##! =####+######## ## | | ??????????????????# ##=]!#? ?????# # | | ??????????????????+ ##%[]# ???# # | | ??????????????????# ##]!]# """ """ #?# # | | ??????????????????# ##!]!# """ """ #?# # | | ?????????????????## ## ] # """ """ #?# # | | ?????????????????# @ # # #?# # | | ?????????????????# ##### = ?#?# [ | | ?????????????????# < #???? ???# [ | | ?????????????????# ]#??????######???# [[ | | ?????????????????# #???????????????# | | ?????????????????#######???????????????# ? | | ???????????????????????????????????????# ? | | ???????????????????????????????????????# ? | | ???????????????????????????????????????? ?? | | ?????????????????????????????????????????????? | | ?????????????????????????????????????????????? | | ?????????????????????????????????????????????? | | ?????????????????????????????????????????????? | | ?????????????????????????????????????????????? | | ?????????????????????????????????????????????? | | ?????????????????????????????????????????????? | | ?????????????????????????????????????????????? | | ?????????????????????????????????????????????? | | ?????????????????????????????????????????????? | | ?????????????????????????????????????????????? | | ?????????????????????????????????????????????? | | ?????????????????????????????????????????????? | | ?????????????????????????????????????????????? | | ?????????????????????????????????????????????? | | ?????????????????????????????????????????????? | +----------------------------------------------------+ Best States ------------- Heat Dissipation 31 Energy Generation 14 Energy Capacity 250 Matter Stores 292 Matter Capacity 300 Sight Range 16 Terrain Scan Density 10 Armor Coverage 225 Weapon Cycling 30 Evasion (%) 40 Recoil Reduction 3 Authchip Count 1 Item Schematics ----------------- None Robot Schematics ------------------ None Fabricated ------------ Nothing Alien Tech Used ----------------- None Achievements -------------- None Challenges ------------ None Game ------ Seed DerelictModifiedMinigun Manual? 0 Play Time 00:16:45 Cumulative 354.8 hours Start 2024.05.14 @ 18:21:49 End 2024.05.14 @ 18:35:47 Sessions 1 Manual Loads 0 Difficulty Rogue Special Mode None Game No. 260 Rogue 260 Adventurer 0 Explorer 0 Win Type - Total 14 Types 9/0/4/1/0/0/0/0/0 Lore% 83 Gallery% 88 Achievement% 76 Wizard Run 0 Options --------- Layout 2 ASCII 1 Keyboard 1 Movement Vi Keybinds 0 Fullscreen 2 Font 24/Smallcaps Map View 50x44 Zoom Use 0% Tactical HUD 1 Map Filters NONE Filters NONE Steam 1 RUN: 4162c9e0-1435-47f5-a064-a72bb328360a